bitfinex-derivatives/quotes_ETHF0:USTF0_20241027
["timestamp","ask_amount","ask_price","bid_price","bid_amount"]
[1730072062118,1.54579008,2514.0,2513.9,0.8576]
[1730072062316,0.39824,2513.9,2513.8,0.39825]
[1730072062512,0.39824,2513.9,2513.6,1.41759]
[1730072062513,1.57377008,2513.9,2513.6,0.8593]
[1730072062715,1.54584008,2513.7,2513.6,1.25757]
[1730072062919,1.54584008,2513.7,2513.6,0.83567]
[1730072064118,1.99014008,2513.7,2513.6,0.83567]
[1730072064615,1.99014008,2513.7,2513.6,0.4374]
[1730072065213,0.39832,2513.5,2513.4,0.39831]
[1730072065418,1.54589008,2513.5,2513.4,0.39831]
[1730072066619,1.54589008,2513.5,2513.4,0.82591]
[1730072066915,1.14757008,2513.5,2513.4,0.82591]
[1730072067122,1.14757008,2513.5,2513.4,1.97348008]
[1730072067514,1.54587008,2513.5,2513.4,1.97348008]
[1730072068622,1.14757008,2513.5,2513.4,1.97348008]
[1730072070016,1.54587008,2513.5,2513.4,1.97348008]
[1730072070323,1.14757008,2513.5,2513.4,0.82591]
[1730072071630,1.14757008,2513.5,2513.4,1.97348008]
[1730072072624,2.51487008,2513.7,2513.6,0.39829]
[1730072073324,2.91314008,2513.7,2513.6,0.39829]
[1730072076638,0.39831,2513.6,2513.5,0.39829]
[1730072076831,1.54588008,2513.6,2513.5,0.39829]
[1730072077036,0.39832,2513.5,2513.4,0.3983]
[1730072077229,1.96669008,2513.5,2513.4,0.3983]
[1730072077727,2.56416008,2513.5,2512.8,1.04392597]
[1730072077931,1.14757008,2513.0,2512.9,0.8081]
[1730072078235,1.14757008,2513.1,2512.9,1.95567008]
[1730072078436,1.14757008,2513.1,2513.0,0.39838]
[1730072078640,1.74504,2513.3,2513.2,0.39835]
[1730072078841,2.89261008,2513.3,2513.2,0.39835]
[1730072079543,2.89261008,2513.3,2513.2,0.80805]
[1730072082044,2.49427008,2513.3,2513.2,0.80805]
[1730072082241,2.49427008,2513.3,2513.2,1.21765]
[1730072082242,2.89261008,2513.3,2513.2,1.21765]
[1730072082641,2.49427008,2513.3,2513.2,1.21765]
[1730072084050,2.06957008,2513.3,2513.2,1.21765]
[1730072086950,2.46791008,2513.3,2513.2,1.21765]
[1730072088147,2.06957008,2513.3,2513.2,1.21765]
[1730072088346,2.46791008,2513.3,2513.2,1.21765]
[1730072090756,2.06957008,2513.3,2513.2,1.21765]
[1730072090956,2.46791008,2513.3,2513.2,1.21765]
[1730072091748,1.73553,2513.4,2513.2,0.8193]
[1730072091947,1.73553,2513.4,2513.3,0.39834]
[1730072092255,2.88310008,2513.4,2513.3,0.39834]
[1730072096254,2.48477008,2513.4,2513.2,0.8193]
[1730072096454,1.54591008,2513.3,2513.2,1.21764]
[1730072101056,0.39834,2513.3,2513.2,1.21764]
[1730072101357,0.923,2513.4,2513.3,0.39834]
[1730072101552,1.14757008,2513.4,2513.3,0.39834]
[1730072103962,1.14757008,2513.4,2513.2,0.80794]
[1730072104161,1.58537008,2513.3,2513.2,0.39834]
[1730072105047,1.98371008,2513.3,2513.2,0.39834]
[1730072107161,1.58537008,2513.3,2513.2,0.39834]
[1730072107357,1.14757008,2513.3,2513.2,0.39834]
[1730072108455,1.54591008,2513.3,2513.2,0.39834]
[1730072108655,1.14757008,2513.3,2513.2,0.39834]
[1730072109655,1.54591008,2513.3,2513.2,0.39834]
[1730072113860,1.14757008,2513.3,2513.2,0.39834]
[1730072115067,1.54591008,2513.3,2513.2,0.39834]
[1730072115263,1.14757008,2513.3,2513.2,0.39834]
[1730072115870,1.54591008,2513.3,2513.2,0.39834]
[1730072116069,1.14757008,2513.3,2513.2,0.39834]
[1730072116270,1.54591008,2513.3,2513.2,0.39834]
[1730072125476,1.14757008,2513.3,2513.2,0.39834]
[1730072125667,0.4292,2513.4,2513.2,1.14757008]
[1730072125873,0.4292,2513.4,2513.3,0.39834]
[1730072126278,0.82752,2513.4,2513.3,0.39834]
[1730072127371,0.4292,2513.4,2513.3,0.39834]
[1730072127965,0.82752,2513.4,2513.3,0.39834]
[1730072128477,0.4292,2513.4,2513.3,0.39834]
[1730072128876,0.82752,2513.4,2513.3,0.39834]
[1730072129972,1.57677008,2513.4,2513.3,0.39834]
[1730072131471,1.57677008,2513.4,2513.3,0.83624]
[1730072132278,1.97509008,2513.4,2513.3,0.83624]
[1730072134576,1.57677008,2513.4,2513.3,0.83624]
[1730072134783,1.97509008,2513.4,2513.3,0.83624]
[1730072135374,1.57677008,2513.4,2513.3,0.83624]
[1730072137186,1.97509008,2513.4,2513.3,0.83624]
[1730072139380,1.57677008,2513.4,2513.3,0.83624]
[1730072139584,0.439,2513.6,2513.3,1.98381008]
[1730072139879,3.2078,2514.0,2513.5,0.3983]
[1730072140081,2.17165,2513.9,2513.8,0.39826]
[1730072140587,1.7734,2513.9,2513.8,0.39826]
[1730072140882,0.8514,2513.9,2513.8,0.39826]
[1730072141083,1.7734,2513.9,2513.8,0.39826]
[1730072141585,2.92097008,2513.9,2513.8,0.39826]
[1730072142284,3.31921008,2513.9,2513.8,0.39826]
[1730072142481,2.92097008,2513.9,2513.8,0.39826]
[1730072143191,1.99897008,2513.9,2513.8,0.39826]
[1730072143792,2.39721008,2513.9,2513.8,0.39826]
[1730072144289,1.99897008,2513.9,2513.8,0.39826]
[1730072144894,2.39721008,2513.9,2513.8,0.39826]
[1730072145487,1.99897008,2513.9,2513.8,0.39826]
[1730072146890,4.1298,2514.2,2514.1,0.39821]
[1730072147095,5.72847008,2514.2,2514.1,0.39821]
[1730072147497,1.99686008,2514.2,2514.1,0.39821]
[1730072149204,1.59867008,2514.2,2514.1,0.39821]
[1730072150000,1.99686008,2514.2,2514.1,0.39821]
[1730072150701,1.59867008,2514.2,2514.1,0.39821]
[1730072151098,1.99686008,2514.2,2514.1,0.39821]
[1730072151402,1.59867008,2514.2,2514.1,0.39821]
[1730072151991,1.99686008,2514.2,2514.1,0.39821]
[1730072154899,0.39824,2514.0,2513.9,0.39823]
[1730072155099,0.39825,2513.9,2513.8,0.39824]
[1730072155306,1.97932008,2513.9,2513.8,0.39824]
[1730072156104,0.39826,2513.8,2513.7,0.39826]
[1730072156301,1.14757008,2513.8,2513.7,0.39827]
[1730072158108,1.54583008,2513.8,2513.7,0.39827]
[1730072165405,1.14757008,2513.8,2513.7,0.39827]
[1730072165609,1.14757008,2513.8,2513.7,5.52424008]
[1730072166619,1.14757008,2513.9,2513.8,0.99563]
[1730072166917,1.14757008,2513.9,2513.8,0.39826]
[1730072170117,1.54581008,2513.9,2513.8,0.39826]
[1730072170620,1.14757008,2513.9,2513.8,0.39826]
[1730072177821,0.8732,2514.1,2514.0,0.39822]
[1730072178018,2.02077008,2514.1,2514.0,0.39822]
[1730072178227,2.41898008,2514.1,2514.0,0.39822]
[1730072178425,2.02077008,2514.1,2514.0,0.39822]
[1730072178619,0.8732,2514.1,2514.0,0.39822]
[1730072178822,2.02077008,2514.1,2514.0,0.39822]
[1730072179028,2.41898008,2514.1,2514.0,0.39822]
[1730072180123,2.02077008,2514.1,2514.0,0.39822]
[1730072181027,2.41898008,2514.1,2514.0,0.39822]
[1730072181230,2.02077008,2514.1,2514.0,0.39822]
[1730072181527,2.41898008,2514.1,2514.0,0.39822]
[1730072182824,2.02077008,2514.1,2514.0,0.39822]
[1730072183126,2.41898008,2514.1,2514.0,0.39822]
[1730072183725,2.02077008,2514.1,2514.0,0.39822]
[1730072184224,2.41898008,2514.1,2514.0,0.39822]
[1730072184628,2.02077008,2514.1,2514.0,0.39822]
[1730072187633,2.41898008,2514.1,2514.0,0.39822]
[1730072187837,0.39824,2514.0,2513.9,0.39823]
[1730072188129,1.54581008,2514.0,2513.9,0.39823]
[1730072191725,1.14757008,2514.0,2513.9,0.39823]
[1730072192531,1.54579008,2514.0,2513.9,0.39823]
[1730072193435,1.14757008,2514.0,2513.9,0.39823]
[1730072193838,1.54579008,2514.0,2513.9,0.39823]
[1730072197035,1.14757008,2514.0,2513.9,0.39823]
[1730072197426,1.54579008,2514.0,2513.9,0.39823]
[1730072198645,1.14757008,2514.0,2513.9,0.39823]
[1730072198939,1.54579008,2514.0,2513.9,0.39823]
[1730072200633,1.14757008,2514.0,2513.9,0.39823]
[1730072201342,1.54579008,2514.0,2513.9,0.39823]
[1730072206248,5.12517008,2514.0,2513.5,1.04392597]
[1730072206451,0.39828,2513.8,2513.7,0.39826]
[1730072206946,4.81748,2513.8,2513.7,0.39826]
[1730072207337,5.96505008,2513.8,2513.7,0.39826]
[1730072207941,5.56677008,2513.8,2513.7,0.39826]
[1730072208139,1.58837008,2513.8,2513.7,0.39826]
[1730072209347,1.98663008,2513.8,2513.7,0.39826]
[1730072220155,3.2078,2513.9,2513.8,0.39826]
[1730072220357,4.35537008,2513.9,2513.8,0.39826]
[1730072220654,3.2078,2513.9,2513.8,0.39826]
[1730072220858,4.35537008,2513.9,2513.8,0.39826]
[1730072221158,1.14757008,2513.9,2513.8,0.39826]
[1730072226152,1.54581008,2513.9,2513.8,0.39826]
[1730072226358,1.14757008,2513.9,2513.8,0.39826]
[1730072227660,1.54581008,2513.9,2513.8,0.39826]
[1730072228357,1.14757008,2513.9,2513.8,0.39826]
[1730072228954,1.54581008,2513.9,2513.8,0.39826]
[1730072229256,1.14757008,2513.9,2513.8,0.39826]
[1730072230062,1.54581008,2513.9,2513.8,0.39826]
[1730072233457,5.12517008,2513.9,2513.5,0.4405]
[1730072233671,0.39828,2513.7,2513.6,0.39829]
[1730072233966,0.8543,2513.8,2513.7,0.39827]
[1730072234164,1.25256,2513.8,2513.7,0.39827]
[1730072234859,2.40013008,2513.8,2513.7,0.39827]
[1730072236265,2.40013008,2513.8,2513.6,0.39828]
[1730072236266,0.39829,2513.7,2513.6,0.39828]
[1730072236479,1.54586008,2513.7,2513.6,0.39828]
[1730072238954,1.14757008,2513.7,2513.5,0.4405]
[1730072239171,1.54586008,2513.6,2513.5,0.83879]
[1730072243765,1.54586008,2513.6,2513.5,0.39829]
[1730072244065,1.14757008,2513.6,2513.4,0.8287]
[1730072244271,1.97317008,2513.5,2513.4,0.3983]
[1730072244567,2.39457008,2513.5,2513.4,0.3983]
[1730072245369,5.60237008,2513.5,2513.4,0.3983]
[1730072248872,4.0565,2513.5,2513.4,0.3983]
[1730072249179,5.60237008,2513.5,2513.4,0.3983]
[1730072251170,2.39457008,2513.5,2513.4,0.3983]
[1730072252482,1.97317008,2513.5,2513.4,0.3983]
[1730072254477,1.3193,2513.6,2513.5,0.3983]
[1730072254884,5.2977,2513.6,2513.5,0.3983]
[1730072255880,6.44527008,2513.6,2513.5,0.3983]
[1730072258279,2.46687008,2513.6,2513.5,0.3983]
[1730072259078,6.44527008,2513.6,2513.5,0.3983]
[1730072259381,6.44527008,2513.6,2513.4,0.39831]
[1730072259382,0.39832,2513.5,2513.4,0.39831]
[1730072259581,1.54589008,2513.5,2513.4,0.39831]
[1730072262586,0.39832,2513.4,2513.3,0.82502]
[1730072262896,1.99589008,2513.4,2513.3,0.82502]
[1730072266583,1.59757008,2513.4,2513.3,0.82502]
[1730072268200,1.14757008,2513.4,2513.3,0.82502]
[1730072271892,1.54589008,2513.4,2513.3,0.82502]
[1730072272293,1.14757008,2513.4,2513.3,0.82502]
[1730072272492,1.54589008,2513.4,2513.3,0.82502]
[1730072273093,1.14757008,2513.4,2513.3,0.82502]
[1730072275394,1.3482,2513.6,2513.5,0.3983]
[1730072275697,2.49577008,2513.6,2513.5,0.3983]
[1730072276096,2.49577008,2513.6,2513.5,0.8377]
[1730072276690,2.89406008,2513.6,2513.5,0.8377]
[1730072277289,1.97306008,2513.6,2513.5,0.8377]
[1730072288406,1.97306008,2513.6,2513.5,0.4394]
[1730072288608,5.55317008,2513.6,2513.0,5.68353176]
[1730072288813,0.39835,2513.3,2513.2,0.39834]
[1730072291526,1.54592008,2513.3,2513.2,0.39834]
[1730072292920,1.14757008,2513.3,2513.2,0.39834]
[1730072293619,1.56307008,2513.3,2513.2,0.39834]
[1730072294324,1.96141008,2513.3,2513.2,0.39834]
[1730072294519,1.56307008,2513.3,2513.2,0.39834]
[1730072294727,1.96141008,2513.3,2513.2,0.39834]
[1730072296317,1.56307008,2513.3,2513.2,0.39834]
[1730072296921,1.96141008,2513.3,2513.2,0.39834]
[1730072297124,1.56307008,2513.3,2513.2,0.39834]
[1730072299024,1.96141008,2513.3,2513.2,0.39834]
[1730072299725,1.56307008,2513.3,2513.2,0.39834]
[1730072300125,1.96141008,2513.3,2513.2,0.39834]
[1730072300515,1.56307008,2513.3,2513.2,0.39834]
[1730072301521,1.96141008,2513.3,2513.2,0.39834]
[1730072301726,1.56307008,2513.3,2513.2,0.39834]
[1730072303826,1.96141008,2513.3,2513.2,0.39834]
[1730072304023,1.56307008,2513.3,2513.2,0.39834]
[1730072305122,1.14757008,2513.3,2513.2,3.9792]
[1730072305324,1.14757008,2513.3,2513.2,4.37755]
[1730072307126,1.14757008,2513.3,2513.2,0.39835]
[1730072307526,1.14757008,2513.3,2513.2,5.52512008]
[1730072313927,3.2078,2513.8,2513.2,5.12677008]
[1730072314131,3.60606,2513.8,2513.7,0.39827]
[1730072314429,5.17423008,2513.8,2513.7,0.39827]
[1730072315233,5.92354016,2513.8,2513.5,0.4189]
[1730072315428,1.54588008,2513.6,2513.5,0.39829]
[1730072315827,1.97178008,2513.6,2513.5,0.39829]
[1730072318233,1.57347008,2513.6,2513.3,1.28]
[1730072318537,0.80552,2513.5,2513.4,0.3983]
[1730072319741,1.95309008,2513.5,2513.4,0.3983]
[1730072329753,2.87209008,2513.5,2513.4,0.3983]
[1730072332656,2.47377008,2513.5,2513.4,0.3983]
[1730072333659,2.47377008,2513.5,2513.4,0.8152]
[1730072335265,2.87207008,2513.5,2513.4,0.8152]
[1730072335955,2.47377008,2513.5,2513.4,0.8152]
[1730072336157,2.47377008,2513.5,2513.4,1.2508]
[1730072336759,2.87207008,2513.5,2513.4,1.2508]
[1730072337456,2.47377008,2513.5,2513.4,1.2508]
[1730072337666,2.87207008,2513.5,2513.4,1.2508]
[1730072337864,2.87207008,2513.5,2513.4,0.3983]
[1730072344070,2.87207008,2513.5,2513.4,0.8159]
[1730072344370,2.06657008,2513.5,2513.4,0.8159]
[1730072344566,3.2078,2513.7,2513.6,0.39829]
[1730072344763,1.14757008,2513.7,2513.6,0.39829]
[1730072348265,0.919,2513.8,2513.5,0.412]
[1730072348470,1.31726,2513.8,2513.7,0.39827]
[1730072349168,1.76465,2513.9,2513.8,0.39826]
[1730072349376,1.3664,2513.9,2513.8,0.39826]
[1730072349565,2.51397008,2513.9,2513.8,0.39826]
[1730072349871,1.59597008,2513.9,2513.8,0.39826]
[1730072350171,1.99421008,2513.9,2513.8,1.26576]
[1730072350371,1.59597008,2513.9,2513.8,1.26576]
[1730072350960,1.99421008,2513.9,2513.8,1.26576]
[1730072351171,1.59597008,2513.9,2513.8,1.26576]
[1730072352176,1.99421008,2513.9,2513.8,1.26576]
[1730072352472,1.59597008,2513.9,2513.8,1.26576]
[1730072352677,1.99421008,2513.9,2513.8,1.26576]
[1730072353073,1.59597008,2513.9,2513.8,1.26576]
[1730072353372,1.99421008,2513.9,2513.8,1.26576]
[1730072356270,3.14178016,2513.9,2513.8,1.26576]
[1730072357876,1.99421008,2513.9,2513.8,1.26576]
[1730072360475,1.59597008,2513.9,2513.8,1.26576]
[1730072360774,1.99421008,2513.9,2513.8,1.26576]
[1730072369082,1.59597008,2513.9,2513.8,1.26576]
[1730072369583,1.99421008,2513.9,2513.8,1.26576]
[1730072370986,0.39828,2513.7,2513.6,0.39827]
[1730072371286,1.14756008,2513.7,2513.5,1.23889]
[1730072371481,1.97346008,2513.6,2513.5,1.23889]
[1730072371681,1.54586008,2513.6,2513.5,1.23889]
[1730072372084,1.04586008,2513.6,2513.5,1.23889]
[1730072372282,0.75616008,2513.6,2513.5,1.23889]
[1730072372691,0.39829,2513.6,2513.5,1.23889]
[1730072372893,1.54586008,2513.6,2513.5,1.23889]
[1730072373793,0.39828,2513.7,2513.6,0.39829]
[1730072373996,1.54585008,2513.7,2513.6,0.39829]
[1730072376797,1.14757008,2513.7,2513.6,0.39829]
[1730072380909,1.54584008,2513.7,2513.6,0.39829]
[1730072382500,1.14757008,2513.7,2513.6,0.39829]
[1730072382696,1.54584008,2513.7,2513.6,0.39829]
[1730072383901,1.14757008,2513.7,2513.6,0.39829]
[1730072384608,1.54584008,2513.7,2513.6,0.39829]
[1730072386612,1.14757008,2513.7,2513.6,0.39829]
[1730072387311,1.54584008,2513.7,2513.6,0.39829]
[1730072389912,1.14757008,2513.7,2513.6,0.39829]
[1730072390504,1.54584008,2513.7,2513.6,0.39829]
[1730072390810,1.14757008,2513.7,2513.6,0.39829]
[1730072391610,1.54584008,2513.7,2513.6,0.39829]
[1730072395414,1.14757008,2513.7,2513.6,0.39829]
[1730072396213,1.54584008,2513.7,2513.6,0.39829]
[1730072397018,1.14757008,2513.7,2513.6,0.39829]
[1730072397817,1.54584008,2513.7,2513.6,0.39829]
[1730072399116,1.14757008,2513.7,2513.6,0.39829]
[1730072400417,1.54584008,2513.7,2513.6,0.39829]
[1730072405615,1.14757008,2513.7,2513.6,0.39829]
[1730072414319,0.39826,2513.8,2513.5,1.98817008]
[1730072414629,0.39826,2513.8,2513.7,0.39827]
[1730072416118,1.54583008,2513.8,2513.7,0.39827]
[1730072417414,1.14757008,2513.8,2513.7,0.39827]
[1730072418616,1.54583008,2513.8,2513.7,0.39827]
[1730072419018,1.14757008,2513.8,2513.7,0.39827]
[1730072419613,1.54583008,2513.8,2513.7,0.39827]
[1730072426836,1.14757008,2513.8,2513.7,0.39827]
[1730072427324,1.54583008,2513.8,2513.7,0.39827]
[1730072427728,1.14757008,2513.8,2513.7,0.39827]
[1730072428126,1.54583008,2513.8,2513.7,0.39827]
[1730072429432,1.14757008,2513.8,2513.7,0.39827]
[1730072429930,1.54583008,2513.8,2513.7,0.39827]
[1730072430528,1.14757008,2513.8,2513.7,0.39827]
[1730072431434,1.54583008,2513.8,2513.7,0.39827]
[1730072432818,1.14757008,2513.8,2513.7,0.39827]
[1730072433021,1.54583008,2513.8,2513.7,0.39827]
[1730072436626,1.14757008,2513.8,2513.7,0.39827]
[1730072437022,1.54583008,2513.8,2513.7,0.39827]
[1730072439026,0.3983,2513.6,2513.5,0.39828]
[1730072439227,1.54587008,2513.6,2513.5,0.39828]
[1730072439426,1.14757008,2513.6,2513.5,0.39828]
[1730072439627,1.59717008,2513.6,2513.5,0.39828]
[1730072439828,1.09717008,2513.6,2513.5,0.39828]
[1730072440031,0.8479,2513.6,2513.5,0.39828]
[1730072440230,1.99547008,2513.6,2513.5,0.39828]
[1730072440432,1.49547008,2513.6,2513.5,0.39828]
[1730072445141,1.14757008,2513.6,2513.5,0.39828]
[1730072445328,1.54586008,2513.6,2513.5,0.39828]
[1730072448340,0.39834,2513.4,2513.3,0.39832]
[1730072448534,1.54591008,2513.4,2513.3,0.84712]
[1730072449740,1.14757008,2513.4,2513.3,0.84712]
[1730072450644,1.54589008,2513.4,2513.3,0.84712]
[1730072451638,1.14757008,2513.4,2513.3,0.84712]
[1730072453149,1.54589008,2513.4,2513.3,0.84712]
[1730072453345,1.14757008,2513.4,2513.3,0.84712]
[1730072454047,1.54589008,2513.4,2513.3,0.84712]
[1730072454644,1.14757008,2513.4,2513.3,0.84712]
[1730072457043,1.54589008,2513.4,2513.3,0.84712]
[1730072457842,1.14757008,2513.4,2513.3,0.84712]
[1730072458042,1.54589008,2513.4,2513.3,0.84712]
[1730072460243,2.41499008,2513.4,2513.3,0.84712]
[1730072460642,2.41499008,2513.4,2513.3,0.4488]
[1730072460841,3.16424016,2513.4,2512.7,1.04480176]
[1730072461045,1.04685008,2513.0,2512.9,0.4473]
[1730072461239,1.04685008,2513.0,2512.7,1.24892]
[1730072461240,0.39842,2512.8,2512.7,0.8505]
[1730072461443,1.54599008,2512.8,2512.7,1.24893]
[1730072461847,1.14757008,2512.8,2512.6,0.4261]
[1730072462047,1.54600008,2512.7,2512.6,0.4261]
[1730072462250,0.39847,2512.5,2512.4,0.39847]
[1730072462454,1.54604008,2512.5,2512.4,0.39847]
[1730072463353,0.39851,2512.2,2512.1,0.39851]
[1730072463549,1.14757008,2512.2,2512.1,4.80541]
[1730072463749,1.54608008,2512.2,2512.1,0.4261]
[1730072464445,0.39856,2511.9,2511.8,0.39857]
[1730072464649,1.14757008,2511.9,2511.8,0.39857]
[1730072464853,3.2078,2512.2,2511.7,1.14757008]
[1730072465157,3.2078,2512.2,2512.1,0.39853]
[1730072465349,4.35537008,2512.2,2512.1,0.39853]
[1730072465652,4.35537008,2512.2,2512.1,1.26453]
[1730072465857,0.8588,2512.7,2512.1,9.20217008]
[1730072465858,1.14757008,2512.4,2512.1,9.20217008]
[1730072466148,1.14757008,2512.3,2512.2,0.39851]
[1730072466353,1.14757008,2512.5,2512.4,0.39848]
[1730072466951,1.14757008,2512.5,2512.4,4.37848]
[1730072467856,1.14757008,2512.5,2512.4,0.39848]
[1730072468752,0.39849,2512.4,2512.2,0.39851]
[1730072468970,0.39851,2512.2,2512.1,0.866]
[1730072469159,1.14757008,2512.2,2511.5,4.35537008]
[1730072469348,0.39855,2512.0,2511.8,0.39856]
[1730072469553,0.39855,2512.0,2511.9,0.4438]
[1730072469754,0.39855,2512.0,2511.9,0.84236]
[1730072470057,1.54612008,2512.0,2511.9,0.84236]
[1730072470850,5.12837008,2512.0,2511.5,4.20435]
[1730072471046,1.14757008,2511.6,2511.5,3.60642]
[1730072472253,1.14757008,2511.6,2511.5,4.75399008]
[1730072472458,1.14757008,2511.6,2511.5,0.39862]
[1730072475955,1.14757008,2511.6,2511.5,1.54619008]
[1730072478255,1.14757008,2511.6,2511.5,0.39862]
[1730072478660,1.54618008,2511.6,2511.5,0.39862]
[1730072478862,1.14757008,2511.6,2511.5,0.39862]
[1730072479062,1.14757008,2511.6,2511.4,1.14757008]
[1730072479258,1.14757008,2511.6,2511.5,0.39862]
[1730072479767,1.14757008,2511.8,2511.6,0.39861]
[1730072479961,0.39858,2511.8,2511.7,0.84139]
[1730072480157,1.54615008,2511.8,2511.7,0.84139]
[1730072484571,1.14757008,2511.8,2511.6,0.39859]
[1730072484770,1.54616008,2511.7,2511.6,0.39859]
[1730072489473,1.14757008,2511.7,2511.5,0.4187]
[1730072489764,1.14757008,2511.7,2510.8,1.14757008]
[1730072489765,3.9816,2511.6,2510.8,1.14757008]
[1730072489964,3.9816,2511.6,2511.2,1.14757008]
[1730072489965,1.14757008,2511.3,2511.2,1.14757008]
[1730072490163,1.14757008,2511.3,2511.2,1.54624008]
[1730072490567,4.61455,2511.8,2511.7,0.39859]
[1730072490568,3.60638,2511.8,2511.7,0.39859]
[1730072491074,4.75395008,2511.8,2511.7,0.39859]
[1730072491277,1.14757008,2511.8,2511.7,0.39859]
[1730072494079,1.54614008,2511.8,2511.7,0.39859]
[1730072494387,1.14757008,2511.8,2511.7,0.39859]
[1730072494587,1.54614008,2511.8,2511.7,0.39859]
[1730072495387,0.39859,2511.7,2511.6,1.6964]
[1730072495589,1.54616008,2511.7,2511.6,0.8726]
[1730072495889,1.96186008,2511.7,2511.6,0.8726]
[1730072496089,0.39861,2511.6,2511.5,0.39861]
[1730072496387,1.54618008,2511.6,2511.5,0.39861]
[1730072496783,1.14757008,2511.6,2511.4,0.8729]
[1730072496985,1.54619008,2511.5,2511.4,1.27152]
[1730072497392,5.90156016,2511.5,2511.4,0.443]
[1730072497778,6.86556016,2511.5,2511.4,0.443]
[1730072498384,3.65776016,2511.5,2511.4,0.443]
[1730072498587,3.65776016,2511.5,2511.4,0.84164]
[1730072500680,0.39865,2511.3,2511.2,0.4262]
[1730072500885,1.14757008,2511.3,2511.2,0.82486]
[1730072501095,1.54622008,2511.3,2511.2,0.82486]
[1730072502992,1.14757008,2511.3,2511.2,0.82486]
[1730072503193,1.54622008,2511.3,2511.2,0.82486]
[1730072503797,1.54622008,2511.3,2511.2,0.39866]
[1730072504791,1.54622008,2511.3,2511.1,0.81778]
[1730072504792,0.39867,2511.2,2511.1,0.81778]
[1730072505091,1.54624008,2511.2,2511.1,0.81778]
[1730072508495,1.95504008,2511.2,2511.1,0.81778]
[1730072509902,1.95504008,2511.2,2510.6,1.14757008]
[1730072509903,8.20217721,2511.2,2510.1,3.2078]
[1730072510093,3.2078,2510.8,2510.5,0.8302]
[1730072510293,3.2078,2510.8,2510.7,0.39875]
[1730072510504,1.14757008,2510.8,2510.7,0.39875]
[1730072511201,1.14757008,2510.8,2510.5,0.8302]
[1730072511399,1.14757008,2510.6,2510.5,1.22898]
[1730072513096,1.14757008,2510.6,2510.5,0.8302]
[1730072513697,1.54633008,2510.6,2510.5,0.8302]
[1730072517800,0.39878,2510.5,2510.4,0.4478]
[1730072518012,0.82658,2510.5,2510.4,0.4478]
[1730072518196,0.39878,2510.5,2510.4,0.4478]
[1730072518804,1.54635008,2510.5,2510.4,0.4478]
[1730072519003,0.39878,2510.5,2510.4,0.4478]
[1730072519200,1.14757008,2510.7,2510.4,0.4478]
[1730072519397,1.14757008,2510.5,2510.4,0.8466]
[1730072521294,0.39875,2510.8,2510.7,0.39873]
[1730072521499,1.54632008,2510.8,2510.7,0.39873]
[1730072523113,1.14757008,2510.8,2510.6,0.8599]
[1730072523319,1.54632008,2510.7,2510.6,1.25865]
[1730072523713,1.54632008,2510.7,2510.6,0.8599]
[1730072525104,0.39882,2510.4,2510.3,0.3988]
[1730072525410,1.14757008,2510.4,2510.2,0.8282]
[1730072525713,3.2078,2510.6,2510.2,1.22702]
[1730072525714,1.54638008,2510.3,2510.2,1.22702]
[1730072527302,1.54638008,2510.3,2510.2,1.22703]
[1730072528311,1.54638008,2510.3,2510.2,0.81873]
[1730072528507,1.54638008,2510.3,2510.2,0.4199]
[1730072528708,1.54638008,2510.3,2510.2,0.81873]
[1730072529708,1.54638008,2510.3,2510.2,0.39883]
[1730072531817,1.14757008,2510.3,2510.2,0.39883]
[1730072532408,1.54638008,2510.3,2510.2,0.39883]
[1730072535012,1.14757008,2510.3,2510.2,0.39883]
[1730072535409,0.4384,2510.7,2510.6,0.39876]
[1730072535717,2.61532008,2510.7,2510.6,0.39876]
[1730072536018,1.14757008,2510.7,2510.6,0.39876]
[1730072537015,1.46772,2510.9,2510.8,0.39873]
[1730072537210,2.61529008,2510.9,2510.8,0.39873]
[1730072537715,7.74526016,2510.9,2510.8,0.39873]
[1730072538824,0.39875,2510.8,2510.7,0.39874]
[1730072539024,1.99442008,2510.8,2510.7,0.39874]
[1730072539421,0.39875,2510.7,2510.6,0.84896]
[1730072539622,1.54632008,2510.7,2510.6,0.84896]
[1730072540320,1.14757008,2510.7,2510.6,0.84896]
[1730072540524,1.99441008,2510.8,2510.7,0.39875]
[1730072540823,3.14198016,2510.8,2510.7,0.39875]
[1730072541025,1.99441008,2510.8,2510.7,0.39875]
[1730072541221,1.51672,2510.9,2510.6,0.4502]
[1730072541419,1.51672,2510.9,2510.8,0.39873]
[1730072541725,0.39875,2510.7,2510.6,0.84895]
[1730072542029,1.54632008,2510.7,2510.6,0.84895]
[1730072542421,2.888922,2510.7,2510.6,0.84895]
[1730072542625,2.490172,2510.7,2510.6,0.39875]
[1730072543224,2.888922,2510.7,2510.6,0.39875]
[1730072543920,2.490172,2510.7,2510.6,0.39875]
[1730072544318,2.888922,2510.7,2510.6,0.39875]
[1730072545927,2.490172,2510.7,2510.6,0.39875]
[1730072546121,2.888922,2510.7,2510.6,0.39875]
[1730072546318,2.490172,2510.7,2510.6,0.39875]
[1730072547023,2.888922,2510.7,2510.6,0.39875]
[1730072548523,2.490172,2510.7,2510.6,0.39875]
[1730072549525,2.490172,2510.9,2510.5,0.8546]
[1730072549724,2.490172,2510.9,2510.8,0.39873]
[1730072550222,2.490172,2510.9,2510.8,1.21803]
[1730072551226,2.888892,2510.9,2510.8,1.21803]
[1730072551432,2.490172,2510.9,2510.8,1.21803]
[1730072551629,2.888892,2510.9,2510.8,1.21803]
[1730072553530,2.490172,2510.9,2510.8,1.21803]
[1730072554833,4.3258,2511.1,2511.0,0.3987]
[1730072554834,5.697972,2511.1,2511.0,0.3987]
[1730072555036,6.096652,2511.1,2511.0,0.3987]
[1730072555634,2.888852,2511.1,2511.0,0.3987]
[1730072556533,2.490172,2511.1,2511.0,0.3987]
[1730072557037,2.888852,2511.1,2511.0,0.3987]
[1730072557233,2.490172,2511.1,2511.0,0.3987]
[1730072557737,2.888852,2511.1,2511.0,0.3987]
[1730072557934,2.490172,2511.1,2511.0,0.3987]
[1730072558840,2.888852,2511.1,2511.0,0.3987]